Cogmind - Beta 13 X1 @@@ ROGUE MODE // 2023.09.19 @ 10:38:01 Player: youngster Result: Smashed by cave-in Performance ------------- Evolutions (0) 0 Regions Visited (2) 400 Robots Destroyed (22) 110 Value Destroyed (632) 632 Prototype IDs (0) 0 Alien Tech Used (0) 0 Bonus (0) 0 TOTAL SCORE: 1142 Bonus ------- None Cogmind --------- Core Integrity 0/250 Matter 300/300 Energy 144/200 System Corruption 0% Temperature Cool (0) Movement Rolling (120) Ox1 Location -10/Subcaves Parts ------- > --- POWER (1) -------- Subdweller Power Source > --- PROPULSION (2) --- Light Treads Subdweller Monowheel > --- UTILITY (2) ------ Scrap Shield > --- WEAPON (2) ------- Subdweller Beam Cannon Light Assault Rifle > --- INVENTORY (5) ---- Subdweller Power Source Light Assault Rifle Light Assault Rifle Scrap Shield Fragment (50) Scrap Shield Fragment (49) Peak State ------------ > --- POWER ------------ Subdweller Power Source > --- PROPULSION ------- Light Treads Subdweller Monowheel > --- UTILITY ---------- High-capacity Storage Unit Structural Scanner > --- WEAPON ----------- Subdweller Beam Cannon Light Assault Rifle > --- INVENTORY -------- Light Ion Engine Subdweller Power Source Large Storage Unit High-capacity Matter Pod Subdweller Optics Improved Terrain Scanner Seismic Detector Transport Network Coupler Small Laser Light Assault Rifle Light Assault Rifle Light Assault Rifle Light Assault Rifle Light Assault Rifle Light Assault Rifle Light Cannon Mining Laser Scrap Shield Fragment Scrap Shield Fragment [Rating: 12] Favorites ----------- Power Ion Engine Engine Ion Engine Propulsion Light Treads Treads Light Treads Wheel Subdweller Monowheel Utility Seismic Detector Device Seismic Detector Storage High-capacity Storage Unit Protection Scrap Shield Weapon Light Assault Rifle Energy Cannon Subdweller Beam Cannon Ballistic Gun Light Assault Rifle Ballistic Cannon Light Cannon Build | -11 -10 -10 ------- Run | Jun Mat Sub Slots Evolved . | . . . Power . | . . . Propulsion . | . . . Utility . | . . . Weapon . | . . . Parts Attached 31 | 7 10 14 Power 3 | 1 1 1 Engine 3 | 1 1 1 Core . | . . . Reactor . | . . . Propulsion 9 | 2 3 4 Treads 6 | 2 3 1 Leg . | . . . Wheel 3 | . . 3 Hover . | . . . Flight . | . . . Utility 11 | 2 4 5 Device 7 | 1 2 4 Storage 3 | 1 2 . Processor . | . . . Hackware . | . . . Protection 1 | . . 1 Artifact . | . . . Weapon 8 | 2 2 4 Energy Gun . | . . . Energy Cannon 3 | . . 3 Ballistic Gun 4 | 2 2 . Ballistic Cannon 1 | . . 1 Launcher . | . . . Special Weapon . | . . . Impact Weapon . | . . . Slashing Weapon . | . . . Piercing Weapon . | . . . Special Melee Weapon . | . . . Unidentified Prototypes . | . . . Parts Lost 5 | . 2 3 Power . | . . . Propulsion 3 | . 1 2 Utility . | . . . Weapon 2 | . 1 1 Highest Loss Streak 2 | . 1 2 To Critical Strikes . | . . . Average Slot Usage (%) 98 | . 99 93 Engine 14 | . 14 14 Treads 25 | . 27 18 Wheel 2 | . . 9 Device 12 | . 14 8 Storage 12 | . 14 8 Protection 1 | . . 5 Energy Cannon 2 | . . 8 Ballistic Gun 24 | . 27 14 Ballistic Cannon 1 | . . 4 Naked Turns . | . . . Heaviest Build 55 | 14 49 55 Greatest Support 40 | 40 40 40 Greatest Overweight (x) 3 | . 1 3 Average Overweight (x) . | . . 1 Largest Inventory Capacity 20 | 8 20 20 Average Capacity 15 | 7 16 14 Most Carried 20 | 5 18 20 Average Carried 9 | 2 8 13 Final Capacity 20 | 8 20 5 Final Carried 18 | 4 18 5 Class Distribution -------------------- 90% | Mutant 9% | Subdweller-Mutant Dominant Class ---------------- Mutant | -10/Materials Mutant | -10/Subcaves Resources | -11 -10 -10 ----------- Run | Jun Mat Sub Matter Collected 960 | 234 519 207 Remotely . | . . . Salvage Created 991 | 25 514 452 Parts 53 | 7 20 26 Haulers Intercepted 2 | . 2 . Recyclers Shooed 1 | 1 . . Parts Field Recycled . | . . . Retrieved Matter . | . . . Parts Self-Destructed . | . . . Prevented . | . . . Kills | -11 -10 -10 ------- Run | Jun Mat Sub Combat Hostiles Destroyed 15 | . 6 9 Guns 7 | . 6 1 Cannons 6 | . . 6 Classes Destroyed 7 | 2 4 1 Worker 1 | 1 . . Builder 1 | . 1 . Tunneler 1 | 1 . . Hauler 2 | . 2 . Recycler 2 | . 2 . Grunt 6 | . 6 . Subdweller 9 | . . 9 Best Kill Streak 4 | 1 4 2 Combat Bots Only 3 | . 3 2 Max Kills in Single Turn 1 | 1 1 1 Gunslinging . | . . . Exploded . | . . . Melee . | . . . Uniques/NPCs Destroyed . | . . . Combat | -11 -10 -10 -------- Run | Jun Mat Sub Damage Taken 1538 | . 485 1053 Core 252 | . 58 194 Absorbed by Shields . | . . . Regen/Repaired (Parts) 85 | . 85 . Core Remaining (%) 100 | 100 . . Volleys Fired 113 | 5 58 50 Largest 2 | 2 2 2 Hottest 100 | 40 40 100 Shots Fired 204 | 10 110 84 Gun 162 | 10 110 42 Cannon 42 | . . 42 Launcher . | . . . Special . | . . . Kinetic 168 | 10 110 48 Thermal 36 | . . 36 Explosive . | . . . Electromagnetic . | . . . Robot Hit Streak 17 | 6 14 17 Robot Miss Streak 4 | 1 4 1 Penetration Max . | . . . Secondary Targets 2 | . 1 1 Max Gunslinging Chain 1 | . 1 1 Shots Hit Robots 143 | 8 79 56 Core Hits 45 | 3 29 13 Critical Kills 2 | . . 2 Critical Parts Destroyed . | . . . Critical Strikes 2 | . . 2 Meltdown 2 | . . 2 Melee Attacks . | . . . Impact . | . . . Slashing . | . . . Piercing . | . . . Sneak Attacks . | . . . Combat Hostiles . | . . . Follow-up Attacks . | . . . Damage Inflicted 1822 | 86 904 832 Guns 1181 | 81 853 247 Cannons 585 | . . 585 Explosions . | . . . Melee . | . . . Ramming 56 | 5 51 . Kinetic 1216 | 81 853 282 Thermal 550 | . . 550 Explosive . | . . . Electromagnetic . | . . . Impact . | . . . Slashing . | . . . Piercing . | . . . Highest Corruption . | . . . Average Corruption . | . . . Corruption Purged . | . . . Corruption Blocked . | . . . Overload Shots . | . . . Overflow Damage . | . . . Projectiles . | . . . Explosions . | . . . Melee . | . . . Knockbacks 1 | . . 1 Impact . | . . . Kinetic 1 | . . 1 Secondary . | . . . Self-Inflicted Damage . | . . . Shots . | . . . Rammed 8 | . 8 . Targets Rammed 11 | 1 10 . Kicked . | . . . Crushed 3 | 1 2 . Highest Temperature 40 | . 25 40 Average Temperature 13 | . 11 15 Received Heat Transfer 453 | . 300 153 Siege Activations . | . . . Robots Corrupted . | . . . Combat Hostiles . | . . . Parts Fried . | . . . Impact Corruptions . | . . . Robots Melted 2 | . . 2 Combat Hostiles 2 | . . 2 Parts Melted 3 | . . 3 Heat Transferred 740 | . . 740 Parts Sabotaged . | . . . Parts Stolen . | . . . Parts Stripped . | . . . Power Chain Reactions . | . . . Missiles Intercepted . | . . . Alert | -11 -10 -10 ------- Run | Jun Mat Sub Peak Influence 164 | 10 164 . Initial 6 | . 6 . Average 49 | 2 52 . Maximum Alert Level . | . . . Low Security (%) 100 | 100 100 . Level 1 . | . . . Level 2 . | . . . Level 3 . | . . . Level 4 . | . . . Level 5 . | . . . High Security . | . . . Max Security . | . . . Squads Dispatched 1 | . 1 . Investigation 1 | . 1 . Extermination . | . . . Reinforcement . | . . . Assault . | . . . Garrison . | . . . Intercept . | . . . Searches Triggered . | . . . Construction Impeded . | . . . Haulers Reinforced . | . . . Active Scanning Responses . | . . . Cargo Convoy Interrupts . | . . . Stealth | -11 -10 -10 --------- Run | Jun Mat Sub Distress Signals . | . . . Communications Jammed . | . . . Distress Signals . | . . . Times Spotted 27 | . 18 9 Peak Tracking Total 4 | . 4 2 Tactical Retreats . | . . . Traps | -11 -10 -10 ------- Run | Jun Mat Sub Traps Triggered 2 | . 2 . Indirectly . | . . . Trap Hack Attempts . | . . . Triggered . | . . . Disarmed . | . . . Reprogrammed . | . . . Reused . | . . . Traps Extracted . | . . . Installed . | . . . Triggered . | . . . Machines | -11 -10 -10 ---------- Run | Jun Mat Sub Machines Disabled . | . . . Max in Single Turn . | . . . Machines Repaired . | . . . Machines Sabotaged . | . . . Overloaded Fab Kills . | . . . Hacking | -11 -10 -10 --------- Run | Jun Mat Sub Machines Accessed 6 | . 6 . Terminals 5 | . 5 . Fabricators . | . . . Repair Stations 1 | . 1 . Recycling Units . | . . . Scanalyzers . | . . . Garrison Access . | . . . Total Hacks 20 | . 20 . Successful 5 | . 5 . Failed 15 | . 15 . Catastrophic . | . . . Database Lockouts . | . . . Manual 17 | . 17 . Terminals 17 | . 17 . Fabricators . | . . . Repair Stations 3 | . 3 . Recycling Units . | . . . Scanalyzers . | . . . Garrison Access . | . . . Terminal Hacks 1 | . 1 . Part Schematic 1 | . 1 . Fabricator Hacks . | . . . Repair Station Hacks 2 | . 2 . Scan Component 1 | . 1 . Repair 1 | . 1 . Recycling Unit Hacks . | . . . Scanalyzer . | . . . Garrison Access Hacks . | . . . Unauthorized Hacks 2 | . 2 . Terminals 2 | . 2 . Botnet 1 | . 1 . Operators 1 | . 1 . Fabricators . | . . . Repair Stations . | . . . Recycling Units . | . . . Scanalyzers . | . . . Garrison Access . | . . . Data Cores Recovered . | . . . Used . | . . . Hacking Detections 6 | . 6 . Full Trace Events 1 | . 1 . Feedback Events . | . . . Feedback Blocked . | . . . Robot Schematics Acquired . | . . . Robots Built . | . . . Authchips . | . . . Time . | . . . Total Robot Build Rating . | . . . Part Schematics Acquired 1 | . 1 . Parts Built . | . . . Authchips . | . . . Time . | . . . Total Part Build Rating . | . . . Parts Repaired 1 | . 1 . Time 26 | . 26 . Parts Recycled . | . . . Recycled Matter . | . . . Retrieved Matter . | . . . Retrieved Components . | . . . Parts Scanalyzed . | . . . Part Schematics Acquired . | . . . Parts Damaged . | . . . Bothacking | -11 -10 -10 ------------ Run | Jun Mat Sub Used RIF Installer . | . . . Robots Hacked . | . . . Non-combat . | . . . Combat . | . . . Robot Hacks Applied . | . . . Relay Couplers Released . | . . . Fabnet Peak Effective % . | . . . Robots Rewired . | . . . Allies Hacked . | . . . Hacks Repelled . | . . . Allies | -11 -10 -10 -------- Run | Jun Mat Sub Total Allies . | . . . Largest Group . | . . . Highest-Rated Group . | . . . Highest-Rated Ally . | . . . Total Orders . | . . . Ally Attacks . | . . . Total Damage . | . . . Kills . | . . . Allies Corrupted . | . . . Allies Melted . | . . . Intel | -11 -10 -10 ------- Run | Jun Mat Sub Robot Analysis Total . | . . . Derelict Logs Recovered 1 | . . 1 Drone Launches . | . . . Drone Recoveries . | . . . Exploration | -11 -10 -10 ------------- Run | Jun Mat Sub Turns Passed 2622 | 128 1888 606 Spaces Moved 1210 | 63 853 294 Core 3 | 3 . . Treads 958 | 60 853 45 Legs . | . . . Wheels 249 | . . 249 Hover . | . . . Flight . | . . . Fastest Speed 50 | 50 160 110 Average Speed 176 | 154 188 147 Slowest Speed 240 | 160 240 240 Overloaded Moves . | . . . Propulsion Burnouts . | . . . Robots Hopped . | . . . Cave-ins Triggered 1 | . . 1 Exploration Rate (%) 43 | 5 100 26 Regions Visited 2 Branch Regions 1 Pre-discovered Areas . | . . . Known Exits Taken . | . . . Unknown Exits Taken 2 | 1 1 . Scrap Searched . | . . . Spaces Dug 6 | . . 6 Terrain Destroyed 10 | . . 10 Melee . | . . . Projectile 10 | . . 10 AOE . | . . . Terrain Rammed . | . . . Walls Destroyed . | . . . Machines Disabled . | . . . Actions | -11 -10 -10 --------- Run | Jun Mat Sub Total 1499 | 81 1020 398 Wait 88 | 1 75 12 Move 1208 | 62 852 294 Hop . | . . . Pick Up 28 | 5 14 9 Fast Attach 12 | 6 3 3 Attach 6 | 1 2 3 Detach 1 | . . 1 Swap 13 | . 5 8 Drop 13 | . 1 12 Fire 113 | 5 58 50 Melee . | . . . Ram . | . . . Kick . | . . . Crush 11 | 1 10 . Escape Stasis . | . . . Rewire . | . . . Trap . | . . . Miscellaneous 6 | . . 6 Route ------- -11/Junkyard -10/Materials (discovered 6 exits: [*Mat x3] / [*Min x2] / [*Sub]) -10/Subcaves (discovered 1 exit: [*Mat]) History --------- Turn | Location | Event 44 | -11/Junkyard | Discovered new exit (range 13) 129 | -11/Junkyard | Entered Materials 222 | -10/Materials | Discovered new exit (range 8) 309 | -10/Materials | Build established: Mutant 338 | -10/Materials | Discovered new exit (range 15) 576 | -10/Materials | Discovered new exit (range 8) 700 | -10/Materials | Discovered new exit (range 11) 1385 | -10/Materials | Discovered new exit (range 12) 1514 | -10/Materials | Repaired Lgt. Treads 1647 | -10/Materials | Discovered new exit (range 15) 2017 | -10/Materials | Entered Subcaves 2069 | -10/Subcaves | Core integrity fell below 50% 2238 | -10/Subcaves | Ambushed by Subdwellers from Twisted Machinery 2452 | -10/Subcaves | Shifting Twisted Machinery released Sub. Machine Gun 2452 | -10/Subcaves | Discovered new exit (range 10) 2487 | -10/Subcaves | Shifting Twisted Machinery released Flamer 2558 | -10/Subcaves | Shifting Twisted Machinery released Mak. System Restoration Module 2563 | -10/Subcaves | Shifting Twisted Machinery released Flamer 2566 | -10/Subcaves | Shifting Twisted Machinery released Sub. Optics 2571 | -10/Subcaves | Ambushed by Subdweller buried in earth 2614 | -10/Subcaves | Ambushed by Subdweller buried in earth 2624 | -10/Subcaves | Crushed by falling debris 2624 | -10/Subcaves | Smashed by cave-in Last Messages --------------- 02514_ Sub. Power Source melted. 02518_ Scrap Shield Fragment affixed to Scrap Shield (+45). 02520_ Scrap Shield Fragment affixed to Scrap Shield (+49). 02522_ Scrap Shield Fragment affixed to Scrap Shield (+5). 02524_ Dropped Sub. Monowheel. 02525_ Acquired 18 matter. Mak. System Restoration Module falls loose from the Twisted Machinery. Flamer falls loose from the Twisted Machinery. Sub. Optics falls loose from the Twisted Machinery. 02573_ 8E-7NY(R) destroyed. 02576_ Acquired 1 matter. 02578_ Scrap Shield Fragment affixed to Scrap Shield (+23). 02616_ KW-5SL(R) destroyed. 02619_ Acquired 1 matter. 02621_ Dropped Sub. Beam Cannon. 02623_ Acquired 10 matter. 02624_ The unstable cave ceiling collapses. 02624_ Crushed by falling debris. Map ----- +----------------------------------------------------+ | ?????????????????????????????????????????????????? | | ?????????????????????????????????????????????????? | | ?????????????????????????????????????????????????? | | ?????????????????????????????????????????????????? | | ?????????????????????????????????????????????????? | | ?????????????????????????????????????????????????? | | ##???????????????????????????????????????????????? | | ?#####??????????????????????????????????????????? | | ? # #??????????????????????????????????????????? | | ?? #??????????????????????????????????????????? | | ?? #??????????????????????? ??????????????????? | | ??"" ##??????####???????###?? ?????????????????? | | ## ##?????# #??????""#?? #?????????????????? | | """ ## ### " ###????" #?? ##????????????????? | | """"" "" ##### ### #????????????????? | | """"#" "" "" " " # "#????????????????? | | #??# """"" " " #?????????????????? | | |##?#"! """"" # !" #?????????????????? | | ! ""##?""" "" "" ### "" #??????????????????? | | = ""#???#"" " " " #???????????????????? | | #" "#???#### "" "" #?##????????????????? | | ##" ##?###### ""###& " # ##???????????????? | | ##" #### # # ""#### [& # "|""" ?????????????? | | #" " " "##?#"%#####&"" ## ????????????????? | | " """"""""" "#??##&!#?#"&""##??????????????????? | | # ##" #""#""#??# ####@#"##???????????????????? | | ### "#########"#??## #?#]####????????????????????? | | ??####???????###??? #?##! ??????????????????????? | | ??????????????????? ##???###?????????????????????? | | ??????????????????# ?????????????????????????????? | | ??????????????????##?????????????????????????????? | | ?????????????????????????????????????????????????? | | ?????????????????????????????????????????????????? | | ?????????????????????????????????????????????????? | | ?????????????????????????????????????????????????? | | ?????????????????????????????????????????????????? | | ?????????????????????????????????????????????????? | | ?????????????????????????????????????????????????? | | ?????????????????????????????????????????????????? | | ?????????????????????????????????????????????????? | | ?????????????????????????????????????????????????? | | ?????????????????????????????????????????????????? | | ?????????????????????????????????????????????????? | | ?????????????????????????????????????????????????? | | ?????????????????????????????????????????????????? | | | | | | | | | | | +----------------------------------------------------+ Best States ------------- Heat Dissipation 25 Energy Generation 15 Energy Capacity 250 Matter Stores 300 Matter Capacity 300 Sight Range 21 Terrain Scan Range 16 Terrain Scan Density 10 Armor Coverage 800 Evasion (%) 40 Recoil Reduction 2 Item Schematics ----------------- Cargo Storage Unit | -10/Materials | Hacked Robot Schematics ------------------ None Fabricated ------------ Nothing Alien Tech Used ----------------- None Achievements -------------- None Challenges ------------ None Game ------ Seed SapperHybridThermoblaster Manual? 0 Play Time 00:21:16 Cumulative 427.5 hours Start 2023.09.19 @ 10:22:02 End 2023.09.19 @ 10:38:01 Sessions 1 Manual Loads 0 Difficulty Rogue Special Mode None Game No. 190 Rogue 190 Adventurer 0 Explorer 0 Win Type - Total 10 Types 7/0/1/1/0/0/0/1/0 Lore% 86 Gallery% 92 Achievement% 71 Wizard Run 0 Options --------- ASCII 1 Keyboard 1 Movement Vi Keybinds 0 Fullscreen 2 Font 14/SmallcapsGlow Map View 72x54 Tactical HUD 1 Map Filters NONE Filters NONE Steam 0 RUN: 390ab3f2-bebb-45b5-8245-be45ba8dbbd5